Workbook

Sheet NanQ ONE Program
H1: =[4]Calc!DQ80 -> LoanStream Mortgage | O1: =[4]Calc!EA84 -> Wholesale Ratesheet
H3: =[4]Calc!DQ81 -> 19000 MacArthur Blvd, Suite 200 | O3: =[4]Calc!$ED$86 -> 30 Day Lock Period
H4: =[4]Calc!DQ82 -> Irvine, CA 92612 | N4: =[4]Calc!$EC$87 -> Borrower Paid Compensation
M5: =[5]Calc!BB90 -> Effective Date: | O5: =[4]Calc!$ED$88 -> 2021-09-13
B6: NanQ "ONE" Program | S6: =[5]Calc!AT87 -> PriceOne Calculator
U8: Inputs | W8: =[4]Calc!$EA$95 -> Wholesale Ratesheet | AA8: Full Doc Column Includes
B9: =[4]Calc!$U$93 -> Base Rate / Base Price | G9: =[4]Calc!$DY$98 -> FICO/LTV Price Adjustments | S9: Interest Rate | U9: Rate | AA9: Tax Returns
B10: Rate | C10: =[4]Calc!AC94 -> Full Doc | D10: =[4]Calc!AD94 -> Alt Doc | E10: =[4]Calc!AE94 -> DSCR | I10: =[4]Calc!EA99 -> <=50 | J10: =[4]Calc!EB99 -> 50.01-60 | K10: =[4]Calc!EC99 -> 60.01-65 | L10: =[4]Calc!ED99 -> 65.01-70 | M10: =[4]Calc!EE99 -> 70.01-75 | N10: =[4]Calc!EF99 -> 75.01-80 | O10: =[4]Calc!EG99 -> 80.01-85 | P10: =[4]Calc!EH99 -> 85.01-90 | Q10: =[4]Calc!EI99 -> 90.01-95 | S10: LTV Range | U10: Choose a Selection | AA10: VOE Only
B11: =[4]Calc!AP95 -> 3.25 | C11: =[4]Calc!AC95 -> 100 | D11: =[4]Calc!AD95 -> 99.5 | E11: =[4]Calc!AE95 ->  | G11: =[4]Calc!DY100 -> 780+ | I11: =[4]Calc!EA100 -> 0 | J11: =[4]Calc!EB100 -> 0 | K11: =[4]Calc!EC100 -> -0.25 | L11: =[4]Calc!ED100 -> -0.5 | M11: =[4]Calc!EE100 -> -0.75 | N11: =[4]Calc!EF100 -> -1 | O11: =[4]Calc!EG100 -> -1.5 | P11: =[4]Calc!EH100 -> -2.5 | Q11: =[4]Calc!EI100 -> -4 | S11: FICO Range | U11: Choose a Selection | V11: =IF(U11="Choose Selection",0,(IF((ISERROR((IF(U15="Foreign Nat' With Fico",0,(INDEX(I11:Q20,MATCH(U11,G11:G21,0),MATCH(U10,I10:Q10)))))))=TRUE,0,(INDEX(I11:Q20,MATCH(U11,G11:G21,0),MATCH(U10,I10:Q10)))))) -> 0 | AA11: 1099 Only
B12: =[4]Calc!AP96 -> 3.375 | C12: =[4]Calc!AC96 -> 100.25 | D12: =[4]Calc!AD96 -> 99.75 | E12: =[4]Calc!AE96 ->  | G12: =[4]Calc!DY101 -> 760-779 | I12: =[4]Calc!EA101 -> 0 | J12: =[4]Calc!EB101 -> 0 | K12: =[4]Calc!EC101 -> -0.5 | L12: =[4]Calc!ED101 -> -0.75 | M12: =[4]Calc!EE101 -> -1 | N12: =[4]Calc!EF101 -> -1.25 | O12: =[4]Calc!EG101 -> -1.75 | P12: =[4]Calc!EH101 -> -3.25 | Q12: =[4]Calc!EI101 -> -4.5 | S12: Grade | U12: Choose a Selection | V12: =IF(U12="Choose a Selection",0,(INDEX(M23:M33,MATCH(U12,K23:K33,0)))) -> 0 | AA12: Asset Utilization Only
B13: =[4]Calc!AP97 -> 3.499 | C13: =[4]Calc!AC97 -> 100.5 | D13: =[4]Calc!AD97 -> 100 | E13: =[4]Calc!AE97 ->  | G13: =[4]Calc!DY102 -> 740-759 | I13: =[4]Calc!EA102 -> -0.125 | J13: =[4]Calc!EB102 -> -0.25 | K13: =[4]Calc!EC102 -> -0.5 | L13: =[4]Calc!ED102 -> -1 | M13: =[4]Calc!EE102 -> -1.25 | N13: =[4]Calc!EF102 -> -1.5 | O13: =[4]Calc!EG102 -> -1.75 | P13: =[4]Calc!EH102 -> -3.75 | Q13: =[4]Calc!EI102 -> -5 | S13: Doc Type | U13: Choose a Selection | AA13: Asset Utilization W/ Full Doc
B14: =[4]Calc!AP98 -> 3.625 | C14: =[4]Calc!AC98 -> 100.75 | D14: =[4]Calc!AD98 -> 100.25 | E14: =[4]Calc!AE98 ->  | G14: =[4]Calc!DY103 -> 720-739 | I14: =[4]Calc!EA103 -> -0.25 | J14: =[4]Calc!EB103 -> -0.25 | K14: =[4]Calc!EC103 -> -0.75 | L14: =[4]Calc!ED103 -> -1.25 | M14: =[4]Calc!EE103 -> -1.5 | N14: =[4]Calc!EF103 -> -1.75 | O14: =[4]Calc!EG103 -> -2.25 | P14: =[4]Calc!EH103 -> -4.25 | Q14: =[4]Calc!EI103 -> -6 | S14: Additional Adjs | U14: Choose a Selection | V14: =IF(U14="Choose a Selection",0,(IF(U14="None in this Dropdown",0,IF(U14="12 Month Full / Alt Doc",0,INDEX(I$24:I$50,MATCH(U14,G$24:G$50,0)))))) -> 0
B15: =[4]Calc!AP99 -> 3.75 | C15: =[4]Calc!AC99 -> 101 | D15: =[4]Calc!AD99 -> 100.5 | E15: =[4]Calc!AE99 ->  | G15: =[4]Calc!DY104 -> 700-719 | I15: =[4]Calc!EA104 -> -0.625 | J15: =[4]Calc!EB104 -> -1 | K15: =[4]Calc!EC104 -> -1.25 | L15: =[4]Calc!ED104 -> -1.5 | M15: =[4]Calc!EE104 -> -1.75 | N15: =[4]Calc!EF104 -> -2.25 | O15: =[4]Calc!EG104 -> -2.5 | P15: =[4]Calc!EH104 -> -5 | Q15: =[4]Calc!EI104 ->  | S15: Citizenships | U15: Choose a Selection | V15: =IF(U15="US Citizen",0,(IF(U15="Permanent Resident",0,(IF(U15="Non Perm Resident",0,(IF(U15="ITIN",VLOOKUP(U15,G25:I51,3,0),(IF(U15="Foreign Nat' No Fico",INDEX(I11:Q21,MATCH(U15,G11:G21,0),MATCH(U10,I10:Q10)),IF(U15="Foreign Nat' With Fico",IF(U15="Foreign Nat' With Fico",INDEX(G25:I51,(MATCH(U15,G25:G51,0)),3)),0)))))))))) -> 0 | W15: B Max LTV Exceeded for Foreign National | AA15: Alt Doc Column Includes
B16: =[4]Calc!AP100 -> 3.875 | C16: =[4]Calc!AC100 -> 101.25 | D16: =[4]Calc!AD100 -> 100.75 | E16: =[4]Calc!AE100 -> 100 | G16: =[4]Calc!DY105 -> 680-699 | I16: =[4]Calc!EA105 -> -0.875 | J16: =[4]Calc!EB105 -> -1.25 | K16: =[4]Calc!EC105 -> -1.5 | L16: =[4]Calc!ED105 -> -2 | M16: =[4]Calc!EE105 -> -2.25 | N16: =[4]Calc!EF105 -> -2.5 | O16: =[4]Calc!EG105 -> -3 | P16: =[4]Calc!EH105 -> -6 | Q16: =[4]Calc!EI105 ->  | S16: DTI | U16: Choose a Selection | V16: =IF(U16="Choose a Selection",0,(IF(U16="DTI <50% - All Doc Types",0,IF(U16="No DTI Program",0,INDEX(I$24:I$50,MATCH(U16,G$24:G$50,0)))))) -> 0 | W16: Please reach out to the Lock Desk to Price Loans >5MM | AA16: 12 Bank Statements
B17: =[4]Calc!AP101 -> 3.999 | C17: =[4]Calc!AC101 -> 101.5 | D17: =[4]Calc!AD101 -> 101 | E17: =[4]Calc!AE101 -> 100.25 | G17: =[4]Calc!DY106 -> 660-679 | I17: =[4]Calc!EA106 -> -1.25 | J17: =[4]Calc!EB106 -> -2 | K17: =[4]Calc!EC106 -> -2.25 | L17: =[4]Calc!ED106 -> -2.75 | M17: =[4]Calc!EE106 -> -3 | N17: =[4]Calc!EF106 -> -3.25 | O17: =[4]Calc!EG106 -> -4 | P17: =[4]Calc!EH106 -> -7 | Q17: =[4]Calc!EI106 ->  | S17: Loan Balance | U17: Choose a Selection | V17: =IF(U17="Choose a Selection",0,((IF(U17="$5,000,001-$7,500,000","Call Lock Desk",IF(U17="$7,500,001-$10,000,000","Call Lock Desk",INDEX(I$24:I$50,MATCH(U17,G$24:G$50,0))))))) -> 0 | AA17: 12 or 24 CPA P&L
B18: =[4]Calc!AP102 -> 4.125 | C18: =[4]Calc!AC102 -> 101.75 | D18: =[4]Calc!AD102 -> 101.25 | E18: =[4]Calc!AE102 -> 100.5 | G18: =[4]Calc!DY107 -> 640-659 | I18: =[4]Calc!EA107 -> -1.625 | J18: =[4]Calc!EB107 -> -2.25 | K18: =[4]Calc!EC107 -> -2.5 | L18: =[4]Calc!ED107 -> -3 | M18: =[4]Calc!EE107 -> -3.5 | N18: =[4]Calc!EF107 -> -4 | O18: =[4]Calc!EG107 -> -5 | P18: =[4]Calc!EH107 -> -8 | Q18: =[4]Calc!EI107 ->  | S18: Purpose | U18: Choose a Selection | V18: =IF(ISERROR(IF(OR(U18="Purchase",U18="Rate/Term Refi"),0,INDEX(I$24:I$53,MATCH(U18,G$24:G$53,0)))),0,INDEX(I$24:I$53,MATCH(U18,G$24:G$53,0))) -> 0 | W18: Cashout must be for business purpose only | AA18: Asset Utlization W/ Bank Stmt
B19: =[4]Calc!AP103 -> 4.25 | C19: =[4]Calc!AC103 -> 102 | D19: =[4]Calc!AD103 -> 101.5 | E19: =[4]Calc!AE103 -> 100.75 | G19: =[4]Calc!DY108 -> 620-639 | I19: =[4]Calc!EA108 -> -1.875 | J19: =[4]Calc!EB108 -> -2.5 | K19: =[4]Calc!EC108 -> -3 | L19: =[4]Calc!ED108 -> -3.5 | M19: =[4]Calc!EE108 -> -4 | N19: =[4]Calc!EF108 -> -4.75 | O19: =[4]Calc!EG108 -> -6 | P19: =[4]Calc!EH108 ->  | Q19: =[4]Calc!EI108 ->  | S19: Occupancy | U19: Choose a Selection | V19: =IF(U19="Choose a Selection",0,(IF(OR(U19="Primary"),0,IF(OR(U19="Non-Owner (DSCR/No Ratio)"),0,INDEX(I$24:I$50,MATCH(U19,G$24:G$50,0)))))) -> 0 | W19: =IF(U19="Non-Owner (N/A DSCR)",AF36,IF(U19="Non-Owner (DSCR/No Ratio)",AF32,"")) -> 
B20: =[4]Calc!AP104 -> 4.375 | C20: =[4]Calc!AC104 -> 102.25 | D20: =[4]Calc!AD104 -> 101.75 | E20: =[4]Calc!AE104 -> 101 | G20: =[4]Calc!DY109 -> 600-619 | I20: =[4]Calc!EA109 -> -2.625 | J20: =[4]Calc!EB109 -> -3.25 | K20: =[4]Calc!EC109 -> -3.75 | L20: =[4]Calc!ED109 -> -4.25 | M20: =[4]Calc!EE109 -> -5.5 | N20: =[4]Calc!EF109 -> -6.5 | O20: =[4]Calc!EG109 -> -7 | P20: =[4]Calc!EH109 ->  | Q20: =[4]Calc!EI109 ->  | S20: Property Type | U20: Choose a Selection | V20: =IF(U17="Choose a Selection",0,(IF(OR(U20="SFR",U20="1-2 Units",U20="PUD",U20="Condo"),0,INDEX(I$24:I$50,MATCH(U20,G$24:G$50,0))))) -> 0
B21: =[4]Calc!AP105 -> 4.499 | C21: =[4]Calc!AC105 -> 102.5 | D21: =[4]Calc!AD105 -> 102 | E21: =[4]Calc!AE105 -> 101.25 | G21: =[4]Calc!DY110 -> Foreign Nat' No Fico | H21: =[4]Calc!DZ110 -> 0 | I21: =[4]Calc!EA110 -> -0.875 | J21: =[4]Calc!EB110 -> -1.25 | K21: =[4]Calc!EC110 -> -1.5 | L21: =[4]Calc!ED110 -> -2 | M21: =[4]Calc!EE110 -> -2.25 | N21: =[4]Calc!EF110 ->  | O21: =[4]Calc!EG110 ->  | P21: =[4]Calc!EH110 ->  | Q21: =[4]Calc!EI110 ->  | S21: Loan Term | U21: 5/1 30YR ARM | V21: =INDEX(Q23:Q33,MATCH(U21,O23:O33,0)) -> 0 | W21: *TX Cash-out Min Ln Amt $250,000* | AA21: DSCR/No Ratio Column Includes
B22: =[4]Calc!AP106 -> 4.625 | C22: =[4]Calc!AC106 -> 102.75 | D22: =[4]Calc!AD106 -> 102.25 | E22: =[4]Calc!AE106 -> 101.5 | S22: Escrow | U22: Escrow Not Waived | V22: =IF(U22="Escrow Not Waived",0,INDEX(I$24:I$50,MATCH(U22,G$24:G$50,0))) -> 0 | W22: Impounds Required On HPML Loans, Ask Your AM | AA22: DSCR
B23: =[4]Calc!AP107 -> 4.75 | C23: =[4]Calc!AC107 -> 103 | D23: =[4]Calc!AD107 -> 102.5 | E23: =[4]Calc!AE107 -> 101.75 | G23: =[4]Calc!$DY$113 -> Loan Level Price Adjustments | K23: =[4]Calc!$EC$113 -> Grades | O23: =[4]Calc!$EC$124 -> Loan Term | S23: Prepayment Penalty | U23: 36 Months PPP | V23: =IF(OR(U19="Primary",U19="Second Home"),0,INDEX(I$24:I$50,MATCH(U23,G$24:G$50,0))) -> 0 | W23: Due to state statutes, LSM does not allow ARM loans in New Mexico | AA23: No Ratio
B24: =[4]Calc!AP108 -> 4.875 | C24: =[4]Calc!AC108 -> 103.25 | D24: =[4]Calc!AD108 -> 102.75 | E24: =[4]Calc!AE108 -> 102 | I24: =[5]Calc!$CA107 -> LLPA | K24: =[4]Calc!EC114 -> Select - Standard | M24: =[4]Calc!EE114 -> 0.5 | O24: =[4]Calc!EC125 -> 5/1 30YR ARM | Q24: =[4]Calc!EE125 -> 0 | S24: State | U24: All Other States | V24: 0
B25: =[4]Calc!AP109 -> 4.999 | C25: =[4]Calc!AC109 -> 103.5 | D25: =[4]Calc!AD109 -> 103 | E25: =[4]Calc!AE109 -> 102.25 | G25: =[4]Calc!DY115 -> DTI ≥50% - All Doc Types | I25: =[4]Calc!EB115 -> -0.25 | K25: =[4]Calc!EC115 -> A+ | M25: =[4]Calc!EE115 -> 0.25 | O25: =[4]Calc!EC126 -> 5/1 30YR IO ARM | Q25: =[4]Calc!EE126 -> -0.125 | S25: Lock Term | U25: 30 Day | V25: =INDEX(M42:M46,MATCH(U25,K42:K46,0)) -> 0 | W25: UW Fee Buyout Calculator
B26: =[4]Calc!AP110 -> 5.125 | C26: =[4]Calc!AC110 -> 103.75 | D26: =[4]Calc!AD110 -> 103.25 | E26: =[4]Calc!AE110 -> 102.5 | G26: =[4]Calc!DY116 -> Non-Owner (N/A DSCR) | I26: =[4]Calc!EB116 -> -1 | K26: =[4]Calc!EC116 -> A | M26: =[4]Calc!EE116 -> -1 | O26: =[4]Calc!EC127 -> 5/1 40YR IO ARM | Q26: =[4]Calc!EE127 -> -0.25 | S26: Future Use | U26: Not Applicable | V26: =IF(U26<>"xxx",0,0) -> 0 | W26: Loan Amount → | Y26: 0 | AD26: Minimum rate rule | AE26: =IF(U9>4.74,0,1) -> 0
B27: =[4]Calc!AP111 -> 5.25 | C27: =[4]Calc!AC111 -> 104 | D27: =[4]Calc!AD111 -> 103.5 | E27: =[4]Calc!AE111 -> 102.75 | G27: ITIN | I27: =[4]Calc!EB117 -> -1.5 | K27: =[4]Calc!EC117 -> B | M27: =[4]Calc!EE117 -> -2 | O27: =[4]Calc!EC128 -> 7/1 30YR ARM | Q27: =[4]Calc!EE128 -> -0.125 | S27: Total LLPA | V27: =SUM(V11:V26) -> 0 | W27: =IFERROR(1295/Y26*100,"Input a Loan Amount") -> Input a Loan Amount | AD27: Loan Amount rule | AE27: =IF(V17<5,0,1) -> 0
B28: =[4]Calc!AP112 -> 5.375 | C28: =[4]Calc!AC112 -> 104.25 | D28: =[4]Calc!AD112 -> 103.75 | E28: =[4]Calc!AE112 -> 103 | G28: =[4]Calc!DY118 -> VOE Only | I28: =[4]Calc!EB118 -> -1 | K28: =[4]Calc!EC118 -> B- | M28: =[4]Calc!EE118 -> -2.5 | O28: =[4]Calc!EC129 -> 7/1 30YR IO ARM | Q28: =[4]Calc!EE129 -> -0.25 | S28: Gross Rate Sheet Price (Prior to LLPAs) | V28: =INDEX(B11:E53,MATCH(U9,B11:B53,0),MATCH(U13,C10:E10,0)+1) ->  | AD28: Impounds rule | AE28: =IF(NOT(U22="Escrow Waived"),0,1) -> 0
B29: =[4]Calc!AP113 -> 5.499 | C29: =[4]Calc!AC113 -> 104.5 | D29: =[4]Calc!AD113 -> 104 | E29: =[4]Calc!AE113 -> 103.25 | G29: =[4]Calc!DY119 -> 1099 Only | I29: =[4]Calc!EB119 -> -1 | K29: =[4]Calc!EC119 -> C | M29: =[4]Calc!EE119 -> -3 | O29: =[4]Calc!EC130 -> 7/1 40YR IO ARM | Q29: =[4]Calc!EE130 -> -0.375 | S29: Max YSP | V29: =Feed!E65 -> ERROR | W29: =CONCATENATE(S29," ","is"," ", V29) -> Max YSP is ERROR | AD29: Texas rule | AE29: =IF(NOT(U24="Texas"),0,1) -> 0
B30: =[4]Calc!AP114 -> 5.625 | C30: =[4]Calc!AC114 -> 104.75 | D30: =[4]Calc!AD114 -> 104.25 | E30: =[4]Calc!AE114 -> 103.5 | G30: =[4]Calc!DY120 -> Asset Utilization | I30: =[4]Calc!EB120 -> -1 | K30: =[4]Calc!EC120 -> Select - DSCR | M30: =[4]Calc!EE120 -> 0.5 | O30: =[4]Calc!EC131 -> 15YR Fixed | Q30: =[4]Calc!EE131 -> 0 | S30: Net Price: Rate Sheet - LLPA (Prior to Max YSP) | V30: =IFERROR(V28+V27,"Minimum Rate") -> Minimum Rate | W30: =IF(V39="Lender Paid","LPC Selected",IF(AND(V39="Borrower Paid",Z39="",V39="Choose a Selection"),"BPC is Blank","BPC Inputted")) -> BPC Inputted | AD30: 15 Day Rule | AE30: =IF(U25="15 Day",0,1) -> 1
B31: =[4]Calc!AP115 -> 5.75 | C31: =[4]Calc!AC115 -> 105 | D31: =[4]Calc!AD115 -> 104.5 | E31: =[4]Calc!AE115 -> 103.75 | G31: =[4]Calc!DY121 -> Debt Consol. >70% LTV | I31: =[4]Calc!EB121 -> -0.25 | K31: =[4]Calc!EC121 -> DSCR (≥1.00) | M31: =[4]Calc!EE121 -> 0.25 | O31: =[4]Calc!EC132 -> 30YR Fixed | Q31: =[4]Calc!EE132 -> -0.25 | S31: Net Rate Sheet Price - As Borrower Paid (BPC) | V31: =IFERROR(IF(V30>V29,V29,V30),"Priced LPC") -> ERROR | W31: =CONCATENATE(Feed!B177," ",Feed!D177,"%" &" @ "&Feed!E177) -> Near Par Rate - BPC 0% @ 0 | AD31: Cashout/PPP Rule | AE31: =IF(AND(U18="Cash-out",U23<>"No Prepay",U19<>"primary"),0,1) -> 1
B32: =[4]Calc!AP116 -> 5.875 | C32: =[4]Calc!AC116 -> 105.25 | D32: =[4]Calc!AD116 -> 104.75 | E32: =[4]Calc!AE116 -> 104 | G32: =[4]Calc!DY122 -> Cash-Out >70% LTV | I32: =[4]Calc!EB122 -> -0.375 | K32: =[4]Calc!EC122 -> No Ratio (0.75-0.99) | M32: =[4]Calc!EE122 -> -1 | O32: =[4]Calc!EC133 -> 30YR IO Fixed | Q32: =[4]Calc!EE133 -> -0.375 | S32: Net Rate Sheet Price - BPC W/ UW Fee Buyout | V32: =IF(Y26=0,"Missing TLA",V31-W27) -> Missing TLA | AD32: DSCR | AE32: =IF(U19="Non-Owner (N/A DSCR)",0,IF(U19="Non-Owner (DSCR/No Ratio)",0,1)) -> 1 | AF32: You have Selected DSCR No Income Loan
B33: =[4]Calc!AP117 -> 5.999 | C33: =[4]Calc!AC117 -> 105.5 | D33: =[4]Calc!AD117 -> 105 | E33: =[4]Calc!AE117 -> 104.25 | G33: =[4]Calc!DY123 -> 3-4 Units | I33: =[4]Calc!EB123 -> -0.5 | K33: =[4]Calc!EC123 -> No Ratio (<0.75) | M33: =[4]Calc!EE123 -> -2 | O33: =[4]Calc!EC134 -> 40YR IO Fixed | Q33: =[4]Calc!EE134 -> -0.5 | S33: Lender Paid Comp Plan Amount (LPC)
B34: =[4]Calc!AP118 -> 6.125 | C34: =[4]Calc!AC118 -> 105.75 | D34: =[4]Calc!AD118 -> 105.25 | E34: =[4]Calc!AE118 -> 104.5 | G34: =[4]Calc!DY124 -> Second Home | I34: =[4]Calc!EB124 -> -1 | S34: Net Rate Sheet Price as Lender Paid (LPC) | V34: =IF(V33<0.001,"LPC Not Valid",IFERROR(V31-V33,"LPC Blank")) -> LPC Not Valid | W34: =IF(V33<=0.1,"LPC is Blank",CONCATENATE(Feed!B180," ",Feed!D180,"%"&" @ "&Feed!E180)) -> LPC is Blank
B35: =[4]Calc!AP119 -> 6.25 | C35: =[4]Calc!AC119 -> 106 | D35: =[4]Calc!AD119 -> 105.5 | E35: =[4]Calc!AE119 -> 104.75 | G35: =[4]Calc!DY125 -> DSCR 80.01-85% LTV | I35: =[4]Calc!EB125 -> -1.25 | K35: =[4]Calc!$EF$113 -> Margins | O35: Max Price | S35: Net Rate Sheet Price - LPC W/ UW Fee Buyout | V35: =IFERROR(IF(Y26=0,"Missing TLA",V34-W27),"LPC Not Valid") -> Missing TLA
B36: =[4]Calc!AP120 -> 6.375 | C36: =[4]Calc!AC120 -> 106.25 | D36: =[4]Calc!AD120 -> 105.75 | E36: =[4]Calc!AE120 -> 105 | G36: =[4]Calc!DY126 -> No PPP "See PPP Section" | I36: =[4]Calc!EB126 -> -2 | K36: =[4]Calc!EF114 -> Occupancy | M36: =[4]Calc!$EI$114 -> Margin | O36: Owner Occ/Sec Home | Q36: =[4]Calc!EI125 -> 102 | S36: Loan Number | V36: Borrower Name | AF36: You have Selected Income Qualifing Inv Loan
B37: =[4]Calc!AP121 -> 6.499 | C37: =[4]Calc!AC121 -> 106.5 | D37: =[4]Calc!AD121 -> 106 | E37: =[4]Calc!AE121 -> 105.25 | G37: =[4]Calc!DY127 -> 6 Months PPP | I37: =[4]Calc!EB127 -> -1.75 | K37: =[4]Calc!EF115 -> Primary Home | M37: =[4]Calc!EI115 -> 3 | O37: Loans W/ No PPP | Q37: =[4]Calc!EI126 -> 100 | AD37: Foreign National | AE37: =ISERROR(V15) -> FALSE
B38: =[4]Calc!AP122 -> 6.625 | C38: =[4]Calc!AC122 -> 106.75 | D38: =[4]Calc!AD122 -> 106.25 | E38: =[4]Calc!AE122 -> 105.5 | G38: =[4]Calc!DY128 -> 12 Months PPP | I38: =[4]Calc!EB128 -> -1 | K38: =[4]Calc!EF116 -> Second Home | M38: =[4]Calc!EI116 -> 3 | O38: Loans W/ 6 Month PPP | Q38: =[4]Calc!EI127 -> 100 | S38: Property Address | V38: Compensation Type | Z38: Comp?
B39: =[4]Calc!AP123 -> 6.75 | C39: =[4]Calc!AC123 -> 107 | D39: =[4]Calc!AD123 -> 106.5 | E39: =[4]Calc!AE123 -> 105.75 | G39: =[4]Calc!DY129 -> 24 Months PPP | I39: =[4]Calc!EB129 -> -0.5 | K39: =[4]Calc!EF117 -> Investment Home | M39: =[4]Calc!EI117 -> 5 | O39: Loans W/ 1YR PPP | Q39: =[4]Calc!EI128 -> 101
B40: =[4]Calc!AP124 -> 6.875 | C40: =[4]Calc!AC124 -> 107.25 | D40: =[4]Calc!AD124 -> 106.75 | E40: =[4]Calc!AE124 -> 106 | G40: =[4]Calc!DY130 -> 36 Months PPP | I40: =[4]Calc!EB130 -> 0 | O40: Loans W/ 2YR PPP | Q40: =[4]Calc!EI129 -> 101.5
B41: =[4]Calc!AP125 -> 6.999 | C41: =[4]Calc!AC125 -> 107.5 | D41: =[4]Calc!AD125 -> 107 | E41: =[4]Calc!AE125 -> 106.25 | G41: =[4]Calc!DY131 -> 48 Months PPP | I41: =[4]Calc!EB131 -> 0.25 | K41: =[4]Calc!$EF$117 -> Investment Home | O41: Loans W/ 3YR PPP | Q41: =[4]Calc!EI130 -> 102
B42: =[4]Calc!AP126 -> 7.125 | C42: =[4]Calc!AC126 -> 107.75 | D42: =[4]Calc!AD126 -> 107.25 | E42: =[4]Calc!AE126 -> 106.5 | G42: =[4]Calc!DY132 -> 60 Months PPP | I42: =[4]Calc!EB132 -> 0.5 | K42: =[4]Calc!EF118 -> Lock Days | M42: =[4]Calc!EH118 -> 0 | O42: Loans W/ 4YR PPP | Q42: =[4]Calc!EI131 -> 102.5 | S42: *6 months interest on 80% of the original principal balance Minimum 6 Months Prepay required except in the following states Not allowed in DE, IL1, MD, MI, MN, ND, NJ1, NM, OH, PA 1Prepay allowed for loans closed in the name of a Corporation or LLC in IL, and NJ *PPP is only Allowed on Investment & DSCR Non-TRID Loans
B43: =[4]Calc!AP127 -> 7.25 | C43: =[4]Calc!AC127 -> 108 | D43: =[4]Calc!AD127 -> 107.5 | E43: =[4]Calc!AE127 -> 106.75 | G43: =[4]Calc!DY133 -> Escrow Waived | I43: =[4]Calc!EB133 -> -0.25 | K43: =[4]Calc!EF119 -> 15 Day | M43: =[4]Calc!EH119 -> 0.15 | O43: Loans W/ 5YR PPP | Q43: =[4]Calc!EI132 -> 103
B44: =[4]Calc!AP128 -> 7.375 | C44: =[4]Calc!AC128 -> 108.25 | D44: =[4]Calc!AD128 -> 107.75 | E44: =[4]Calc!AE128 -> 107 | G44: =[4]Calc!DY134 -> NW Condo | I44: =[4]Calc!EB134 -> -1 | K44: =[4]Calc!EF120 -> 30 Day | M44: =[4]Calc!EH120 -> 0
B45: =[4]Calc!AP129 -> 7.499 | C45: =[4]Calc!AC129 -> 108.5 | D45: =[4]Calc!AD129 -> 108 | E45: =[4]Calc!AE129 -> 107.25 | G45: =[4]Calc!DY135 -> <$150,000 | I45: =[4]Calc!EB135 -> -1 | K45: =[4]Calc!EF121 -> 45 Day | M45: =[4]Calc!EH121 -> 0 | O45: Extension Cost
B46: =[4]Calc!AP130 -> 7.625 | C46: =[4]Calc!AC130 -> 108.75 | D46: =[4]Calc!AD130 -> 108.25 | E46: =[4]Calc!AE130 -> 107.5 | G46: =[4]Calc!DY136 -> $150,000-$1,000,000 | I46: =[4]Calc!EB136 -> 0 | K46: =[4]Calc!EF122 -> 60 Day | M46: =[4]Calc!EH122 -> -0.375 | O46: 2 Bps (0.020) | Q46: Per Day
B47: =[4]Calc!AP131 -> 7.75 | C47: =[4]Calc!AC131 -> 109 | D47: =[4]Calc!AD131 -> 108.5 | E47: =[4]Calc!AE131 -> 107.75 | G47: =[4]Calc!DY137 -> >$1,000,000 | I47: =[4]Calc!EB137 -> 0
B48: =[4]Calc!AP132 -> 7.875 | C48: =[4]Calc!AC132 -> 109.25 | D48: =[4]Calc!AD132 -> 108.75 | E48: =[4]Calc!AE132 -> 108 | G48: =[4]Calc!DY138 -> >$1,500,000 | I48: =[4]Calc!EB138 -> 0 | K48: =[4]Calc!EC137 -> Minimum Rates by Doc Type | O48: =[4]Calc!EF137 -> Loan Term | P48: =[4]Calc!EG137 -> Caps | Q48: =[4]Calc!EI137 -> Index
B49: =[4]Calc!AP133 -> 7.999 | C49: =[4]Calc!AC133 -> 109.5 | D49: =[4]Calc!AD133 -> 109 | E49: =[4]Calc!AE133 -> 108.25 | G49: =[4]Calc!DY139 -> >$2,000,000 | I49: =[4]Calc!EB139 -> -0.5 | K49: =[4]Calc!EC138 -> Full Doc | L49: =[4]Calc!ED138 -> Alt Doc | M49: =[4]Calc!EE138 -> DSCR | O49: =[4]Calc!EF138 -> 5/1 ARM | P49: =[4]Calc!EG138 -> 5/2/5 | Q49: =[4]Calc!EI138 -> 1YR Libor
B50: =[4]Calc!AP134 -> 8.125 | C50: =[4]Calc!AC134 -> 109.75 | D50: =[4]Calc!AD134 -> 109.25 | E50: =[4]Calc!AE134 -> 108.5 | G50: =[4]Calc!DY140 -> >$3,000,000 | I50: =[4]Calc!EB140 -> -0.75 | K50: =[4]Calc!EC139 -> 0.0325 | L50: =[4]Calc!ED139 -> 0.0325 | M50: =[4]Calc!EE139 -> 0.0375 | O50: =[4]Calc!EF139 -> 7/1 ARM | P50: =[4]Calc!EG139 -> 5/2/5 | Q50: =[4]Calc!EI139 -> 1YR Libor
G51: =[4]Calc!DY141 -> Foreign Nat' With Fico | I51: =[4]Calc!EB141 -> -0.25 | O51: Floor = Rate
G52: =[4]Calc!DY142 -> Purchase | I52: =[4]Calc!EA142 -> 0
G53: =[4]Calc!DY143 -> Rate/Term Refi | I53: =[4]Calc!EA143 -> 0

Sheet Feed (hidden)
A1: FICO | B1: LTV | C1: Grades | D1: Doc Type | E1: Additional Adjs | F1: DTI | G1: Loan Amount | H1: Prepayment Penalties | I1: Escrow Waiver | J1: Purpose | K1: Property Type | L1: Occupancy | M1: Term | N1: Lock Period | O1: Comp Type | P1: Citizenships | Q1: Foreign National | W1: Message
A2: Choose a Selection | B2: Choose a Selection | C2: Choose a Selection | D2: Choose a Selection | E2: Choose a Selection | F2: Choose a Selection | G2: Choose a Selection | H2: Choose a Selection | I2: Choose a Selection | J2: Choose a Selection | K2: Choose a Selection | L2: Choose a Selection | M2: Choose a Selection | N2: Choose a Selection | O2: Choose a Selection | P2: Choose a Selection | Q2: Choose a Selection | U2: State | V2: Availability | W2: No Penalty | X2: 12 Months | Y2: 24 Months | Z2: 36 Months | AA2: 48 Months | AB2: 60 Months | AD2: Compensation Type
A3: 780+ | B3: <=50 | C3: Select - Standard | D3: Full Doc | E3: None in this Dropdown | F3: DTI <50% - All Doc Types | G3: <$150,000 | H3: No PPP "See PPP Section" | I3: Escrow Not Waived | J3: Purchase | K3: SFR | L3: Primary | M3: 5/1 30YR ARM | N3: 15 Day | O3: Borrower Paid | P3: US Citizen | Q3: Not Applicable1 | U3: Choose a Selection | V3: Y | X3: Choose a Selection | AD3: Borrower Paid
A4: 760-779 | B4: 50.01-60 | C4: A+ | D4: Alt Doc | E4: Asset Utilization | F4: DTI ≥50% - All Doc Types | G4: $150,000-$1,000,000 | H4: 6 Months PPP | I4: Escrow Waived | J4: Rate/Term Refi | K4: 1-2 Units | L4: Second Home | M4: 5/1 30YR IO ARM | N4: 30 Day | O4: Lender Paid | P4: Permanent Resident | Q4: Not Applicable2 | U4: Illinois | V4: Y | X4: Loans Must Close in the name of a Corp or LLC to allow PPP otherwise Buyout the PPP | Y4: Loans Must Close in the name of a Corp or LLC | Z4: Loans Must Close in the name of a Corp or LLC | AA4: Loans Must Close in the name of a Corp or LLC | AB4: Loans Must Close in the name of a Corp or LLC | AD4: Lender Paid
A5: 740-759 | B5: 60.01-65 | C5: A | D5: DSCR | E5: VOE Only | F5: No DTI Program | G5: >$1,000,000 | H5: 12 Months PPP | J5: Debt Consol. ≤ 70% LTV | K5: 3-4 Units | L5: Non-Owner (N/A DSCR) | M5: 5/1 40YR IO ARM | N5: 45 Day | P5: Non Perm Resident | Q5: Not Applicable3 | U5: Maryland | V5: Y | X5: PPP Not Allowed | Y5: PPP Not Allowed | Z5: PPP Not Allowed | AA5: PPP Not Allowed | AB5: PPP Not Allowed
A6: 720-739 | B6: 65.01-70 | C6: B | E6: 1099 Only | G6: >$1,500,000 | H6: 24 Months PPP | J6: Debt Consol. >70% LTV | K6: Condo | L6: Non-Owner (DSCR/No Ratio) | M6: 7/1 30YR ARM | N6: 60 Day | P6: ITIN | U6: Michigan | V6: Y | X6: PPP Not Allowed | Y6: PPP Not Allowed | Z6: PPP Not Allowed | AA6: PPP Not Allowed | AB6: PPP Not Allowed | AD6: Channel
A7: 700-719 | B7: 70.01-75 | C7: B- | E7: DSCR 80.01-85% LTV | G7: >$2,000,000 | H7: 36 Months PPP | J7: Cash-Out ≤ 70% LTV | K7: NW Condo | M7: 7/1 30YR IO ARM | N7: 75 Day | P7: Foreign Nat' No Fico | U7: Minnesota | V7: Y | X7: PPP Not Allowed | Y7: PPP Not Allowed | Z7: PPP Not Allowed | AA7: PPP Not Allowed | AB7: PPP Not Allowed | AD7: =[6]!Input_Stamp_Channel -> W
A8: 680-699 | B8: 75.01-80 | C8: C | G8: >$3,000,000 | H8: 48 Months PPP | J8: Cash-Out >70% LTV | K8: PUD | M8: 7/1 40YR IO ARM | P8: Foreign Nat' With Fico | U8: North Dakota | V8: Y | X8: PPP Not Allowed | Y8: PPP Not Allowed | Z8: PPP Not Allowed | AA8: PPP Not Allowed | AB8: PPP Not Allowed
A9: 660-679 | B9: 80.01-85 | C9: Select - DSCR | H9: 60 Months PPP | J9: Cash-Out >70% LTV | M9: 15YR Fixed | U9: New Jersey | V9: Y | X9: Loans Must Close in the name of a Corp or LLC to allow PPP otherwise Buyout the PPP | Y9: Loans Must Close in the name of a Corp or LLC | Z9: Loans Must Close in the name of a Corp or LLC | AA9: Loans Must Close in the name of a Corp or LLC | AB9: Loans Must Close in the name of a Corp or LLC | AD9: Pricing Special
A10: 640-659 | B10: 85.01-90 | C10: DSCR (≥1.00) | M10: 30YR Fixed | U10: New Mexico | V10: Y | X10: PPP Not Allowed | Y10: PPP Not Allowed | Z10: PPP Not Allowed | AA10: PPP Not Allowed | AB10: PPP Not Allowed | AD10: Eligible
A11: 620-639 | B11: 90.01-95 | C11: No Ratio (0.75-0.99) | J11: Purchase | M11: 30YR IO Fixed | U11: Pennsylvania | V11: Y | X11: PPP Not Allowed | Y11: PPP Not Allowed | Z11: PPP Not Allowed | AA11: PPP Not Allowed | AB11: PPP Not Allowed | AD11: Not Eligible
A12: 600-619 | C12: No Ratio (<0.75) | J12: Rate/Term Refi | M12: 40YR IO Fixed | U12: Texas | V12: Y
A13: Foreign Nat' No Fico | U13: All Other States | V13: Y | X13: PPP Allowed on Investment properties, State rules applies | Y13: PPP Allowed on Investment properties, State rules applies | Z13: PPP Allowed on Investment properties, State rules applies | AA13: PPP Allowed on Investment properties, State rules applies | AB13: PPP Allowed on Investment properties, State rules applies
B22: Rules
E23: No Prepay | F23: 0
B24: Prepay Cond. Format | C24: =IF(OR('NanQ ONE Program'!U19="Primary",'NanQ ONE Program'!U19="Second Home"),1,0) -> 0 | E24: 6 Months PPP | F24: 1
C25: =IF('NanQ ONE Program'!V33>0,0,1) -> 1 | E25: 12 Months PPP | F25: 1
C26: =IF('NanQ ONE Program'!V39:V39="Borrower Paid",0,1) -> 1 | E26: 24 Months PPP | F26: 1
B27: State Format | C27: =IF(OR('NanQ ONE Program'!U19="Non-Owner (N/A DSCR)",'NanQ ONE Program'!U19="Non-Owner (DSCR/No Ratio)"),1,0) -> 0 | E27: 36 Months PPP | F27: 1
E30: Primary | F30: 0
E31: Second Home | F31: 0
E32: Non-Owner | F32: 1
N33: ≥
E34: Max YSP OO | N34: ≤
E35: <$150,000 | F35: 150000
E36: $150,000-$1,000,000 | F36: 750000
E37: >$1,000,000 | F37: 1250000 | J37: Max Price
E38: >$1,500,000 | F38: 1750000 | J38: Owner Occ/Sec Home | L38: 102
E39: >$2,000,000 | F39: 2500000 | J39: Loans W/ No PPP | L39: 100
E40: >$3,000,000 | F40: 3500000 | J40: Loans W/ 6 Month PPP | L40: 100
J41: Loans W/ 1YR PPP | L41: 101
J42: Loans W/ 2YR PPP | L42: 101.5
B43: Max YSP | C43: Loan Balance - Owner Occ/Second | J43: Loans W/ 3YR PPP | L43: 102
C44: ≤$2m | D44: 2m - 3m | E44: >3m | J44: Loans W/ 4YR PPP | L44: 102.5
B45: YSP | C45: 102 | D45: 102 | E45: 102 | J45: Loans W/ 5YR PPP | L45: 103
B47: Max YSP | C47: Loan Balance - Investment
B48: PPP Mo | C48: <=$150,000 | D48: $150,000-$1,000,000 | E48: >$1,000,000 | F48: >$1,500,000 | G48: >$2,000,000 | H48: >$3,000,000
B49: 60 Months PPP | C49: 103 | D49: 103 | E49: 103 | F49: 103 | G49: 103 | H49: 103
B50: 48 Months PPP | C50: 102.5 | D50: 102.5 | E50: 102.5 | F50: 102.5 | G50: 102.5 | H50: 102.5
B51: 36 Months PPP | C51: 102 | D51: 102 | E51: 102 | F51: 102 | G51: 102 | H51: 102 | J51: Owner Occ/Sec Home | L51: 102
B52: 24 Months PPP | C52: 101.5 | D52: 101.5 | E52: 101.5 | F52: 101.5 | G52: 101.5 | H52: 101.5 | J52: Loans W/ No PPP | L52: 100
B53: 12 Months PPP | C53: 101 | D53: 101 | E53: 101 | F53: 101 | G53: 101 | H53: 101 | J53: Loans W/ 6 Month PPP | L53: 100
B54: 6 Months PPP | C54: 100 | D54: 100 | E54: 100 | F54: 100 | G54: 100 | H54: 100 | J54: Loans W/ 1YR PPP | L54: 101
B55: No PPP "See PPP Section" | C55: 100 | D55: 100 | E55: 100 | F55: 100 | G55: 100 | H55: 100 | J55: Loans W/ 2YR PPP | L55: 101.5
J56: Loans W/ 3YR PPP | L56: 102
J57: Loans W/ 4YR PPP | L57: 102.5
J58: Loans W/ 5YR PPP | L58: 103
B60: 0 | C60: 2000000.01 | D60: 102 | E60: =IF(AND($C$66>B60,$C$66<C60),D60,0) -> 
B61: 2000001 | C61: 3000000.01 | D61: 102 | E61: =IF(AND($C$66>B61,$C$66<C61),D61,0) -> 
B62: 3000001 | C62: 10000000 | D62: 102 | H62: =IF('NanQ ONE Program'!V33>0,0,1) -> 1
D63: Primary / Secondary | E63: =SUM(E60:E62) ->  | H63: =IF('NanQ ONE Program'!V33=0,0,1) -> 0
D64: Investment | E64: =INDEX(C49:H55,MATCH(B68,B49:B55,0),MATCH(B66,C48:H48,0)) -> 
E65: =IF(OR(B67="Primary",B67="Second Home"),E63,IF(OR(B67="Non-Owner (N/A DSCR)",B67="Non-Owner (DSCR/No Ratio)"),E64,"ERROR")) -> ERROR | G65: Non-Owner (N/A DSCR)
B66: ='NanQ ONE Program'!U17 -> Choose a Selection | C66: =VLOOKUP(B66,E35:F40,2,FALSE) ->  | G66: Non-Owner (N/A DSCR)
B67: ='NanQ ONE Program'!U19 -> Choose a Selection
B68: ='NanQ ONE Program'!U23 -> 36 Months PPP
B70: 0 | C70: 2000000
B71: 2000001 | C71: 3000000
B72: 3000001 | C72: 10000000
B80: Base Rate / Base Price | I80: Base Rate / Base Price
B81: Coupon | C81: Full Doc | D81: Alt Doc | E81: DSCR | G81: Total LLPA | I81: Coupon | J81: Full Doc | K81: Alt Doc | L81: DSCR
B82: ='NanQ ONE Program'!B11 -> 3.25 | C82: ='NanQ ONE Program'!C11 -> 100 | D82: ='NanQ ONE Program'!D11 -> 99.5 | E82: ='NanQ ONE Program'!E11 ->  | G82: ='NanQ ONE Program'!V27 -> 0 | H82: 1 | I82: =B121 -> 8.125 | J82: =C121+$G$82 -> 109.75 | K82: =D121+$G$82 -> 109.25 | L82: =E121+$G$82 -> 108.5
B83: ='NanQ ONE Program'!B12 -> 3.375 | C83: ='NanQ ONE Program'!C12 -> 100.25 | D83: ='NanQ ONE Program'!D12 -> 99.75 | E83: ='NanQ ONE Program'!E12 ->  | H83: 2 | I83: =B120 -> 7.999 | J83: =C120+$G$82 -> 109.5 | K83: =D120+$G$82 -> 109 | L83: =E120+$G$82 -> 108.25
B84: ='NanQ ONE Program'!B13 -> 3.499 | C84: ='NanQ ONE Program'!C13 -> 100.5 | D84: ='NanQ ONE Program'!D13 -> 100 | E84: ='NanQ ONE Program'!E13 ->  | G84: Total Price | H84: 3 | I84: =B119 -> 7.875 | J84: =C119+$G$82 -> 109.25 | K84: =D119+$G$82 -> 108.75 | L84: =E119+$G$82 -> 108
B85: ='NanQ ONE Program'!B14 -> 3.625 | C85: ='NanQ ONE Program'!C14 -> 100.75 | D85: ='NanQ ONE Program'!D14 -> 100.25 | E85: ='NanQ ONE Program'!E14 ->  | G85: ='NanQ ONE Program'!V31 -> ERROR | H85: 4 | I85: =B118 -> 7.75 | J85: =C118+$G$82 -> 109 | K85: =D118+$G$82 -> 108.5 | L85: =E118+$G$82 -> 107.75
B86: ='NanQ ONE Program'!B15 -> 3.75 | C86: ='NanQ ONE Program'!C15 -> 101 | D86: ='NanQ ONE Program'!D15 -> 100.5 | E86: ='NanQ ONE Program'!E15 ->  | H86: 5 | I86: =B117 -> 7.625 | J86: =C117+$G$82 -> 108.75 | K86: =D117+$G$82 -> 108.25 | L86: =E117+$G$82 -> 107.5
B87: ='NanQ ONE Program'!B16 -> 3.875 | C87: ='NanQ ONE Program'!C16 -> 101.25 | D87: ='NanQ ONE Program'!D16 -> 100.75 | E87: ='NanQ ONE Program'!E16 -> 100 | H87: 6 | I87: =B116 -> 7.499 | J87: =C116+$G$82 -> 108.5 | K87: =D116+$G$82 -> 108 | L87: =E116+$G$82 -> 107.25
B88: ='NanQ ONE Program'!B17 -> 3.999 | C88: ='NanQ ONE Program'!C17 -> 101.5 | D88: ='NanQ ONE Program'!D17 -> 101 | E88: ='NanQ ONE Program'!E17 -> 100.25 | H88: 7 | I88: =B115 -> 7.375 | J88: =C115+$G$82 -> 108.25 | K88: =D115+$G$82 -> 107.75 | L88: =E115+$G$82 -> 107
B89: ='NanQ ONE Program'!B18 -> 4.125 | C89: ='NanQ ONE Program'!C18 -> 101.75 | D89: ='NanQ ONE Program'!D18 -> 101.25 | E89: ='NanQ ONE Program'!E18 -> 100.5 | G89: ='NanQ ONE Program'!U13 -> Choose a Selection | H89: 8 | I89: =B114 -> 7.25 | J89: =C114+$G$82 -> 108 | K89: =D114+$G$82 -> 107.5 | L89: =E114+$G$82 -> 106.75
B90: ='NanQ ONE Program'!B19 -> 4.25 | C90: ='NanQ ONE Program'!C19 -> 102 | D90: ='NanQ ONE Program'!D19 -> 101.5 | E90: ='NanQ ONE Program'!E19 -> 100.75 | H90: 9 | I90: =B113 -> 7.125 | J90: =C113+$G$82 -> 107.75 | K90: =D113+$G$82 -> 107.25 | L90: =E113+$G$82 -> 106.5
B91: ='NanQ ONE Program'!B20 -> 4.375 | C91: ='NanQ ONE Program'!C20 -> 102.25 | D91: ='NanQ ONE Program'!D20 -> 101.75 | E91: ='NanQ ONE Program'!E20 -> 101 | H91: 10 | I91: =B112 -> 6.999 | J91: =C112+$G$82 -> 107.5 | K91: =D112+$G$82 -> 107 | L91: =E112+$G$82 -> 106.25
B92: ='NanQ ONE Program'!B21 -> 4.499 | C92: ='NanQ ONE Program'!C21 -> 102.5 | D92: ='NanQ ONE Program'!D21 -> 102 | E92: ='NanQ ONE Program'!E21 -> 101.25 | H92: 11 | I92: =B111 -> 6.875 | J92: =C111+$G$82 -> 107.25 | K92: =D111+$G$82 -> 106.75 | L92: =E111+$G$82 -> 106
B93: ='NanQ ONE Program'!B22 -> 4.625 | C93: ='NanQ ONE Program'!C22 -> 102.75 | D93: ='NanQ ONE Program'!D22 -> 102.25 | E93: ='NanQ ONE Program'!E22 -> 101.5 | H93: 12 | I93: =B110 -> 6.75 | J93: =C110+$G$82 -> 107 | K93: =D110+$G$82 -> 106.5 | L93: =E110+$G$82 -> 105.75
B94: ='NanQ ONE Program'!B23 -> 4.75 | C94: ='NanQ ONE Program'!C23 -> 103 | D94: ='NanQ ONE Program'!D23 -> 102.5 | E94: ='NanQ ONE Program'!E23 -> 101.75 | H94: 13 | I94: =B109 -> 6.625 | J94: =C109+$G$82 -> 106.75 | K94: =D109+$G$82 -> 106.25 | L94: =E109+$G$82 -> 105.5
B95: ='NanQ ONE Program'!B24 -> 4.875 | C95: ='NanQ ONE Program'!C24 -> 103.25 | D95: ='NanQ ONE Program'!D24 -> 102.75 | E95: ='NanQ ONE Program'!E24 -> 102 | H95: 14 | I95: =B108 -> 6.499 | J95: =C108+$G$82 -> 106.5 | K95: =D108+$G$82 -> 106 | L95: =E108+$G$82 -> 105.25
B96: ='NanQ ONE Program'!B25 -> 4.999 | C96: ='NanQ ONE Program'!C25 -> 103.5 | D96: ='NanQ ONE Program'!D25 -> 103 | E96: ='NanQ ONE Program'!E25 -> 102.25 | H96: 15 | I96: =B107 -> 6.375 | J96: =C107+$G$82 -> 106.25 | K96: =D107+$G$82 -> 105.75 | L96: =E107+$G$82 -> 105
B97: ='NanQ ONE Program'!B26 -> 5.125 | C97: ='NanQ ONE Program'!C26 -> 103.75 | D97: ='NanQ ONE Program'!D26 -> 103.25 | E97: ='NanQ ONE Program'!E26 -> 102.5 | H97: 16 | I97: =B106 -> 6.25 | J97: =C106+$G$82 -> 106 | K97: =D106+$G$82 -> 105.5 | L97: =E106+$G$82 -> 104.75
B98: ='NanQ ONE Program'!B27 -> 5.25 | C98: ='NanQ ONE Program'!C27 -> 104 | D98: ='NanQ ONE Program'!D27 -> 103.5 | E98: ='NanQ ONE Program'!E27 -> 102.75 | H98: 17 | I98: =B105 -> 6.125 | J98: =C105+$G$82 -> 105.75 | K98: =D105+$G$82 -> 105.25 | L98: =E105+$G$82 -> 104.5
B99: ='NanQ ONE Program'!B28 -> 5.375 | C99: ='NanQ ONE Program'!C28 -> 104.25 | D99: ='NanQ ONE Program'!D28 -> 103.75 | E99: ='NanQ ONE Program'!E28 -> 103 | H99: 18 | I99: =B104 -> 5.999 | J99: =C104+$G$82 -> 105.5 | K99: =D104+$G$82 -> 105 | L99: =E104+$G$82 -> 104.25
B100: ='NanQ ONE Program'!B29 -> 5.499 | C100: ='NanQ ONE Program'!C29 -> 104.5 | D100: ='NanQ ONE Program'!D29 -> 104 | E100: ='NanQ ONE Program'!E29 -> 103.25 | H100: 19 | I100: =B103 -> 5.875 | J100: =C103+$G$82 -> 105.25 | K100: =D103+$G$82 -> 104.75 | L100: =E103+$G$82 -> 104
B101: ='NanQ ONE Program'!B30 -> 5.625 | C101: ='NanQ ONE Program'!C30 -> 104.75 | D101: ='NanQ ONE Program'!D30 -> 104.25 | E101: ='NanQ ONE Program'!E30 -> 103.5 | H101: 20 | I101: =B102 -> 5.75 | J101: =C102+$G$82 -> 105 | K101: =D102+$G$82 -> 104.5 | L101: =E102+$G$82 -> 103.75
B102: ='NanQ ONE Program'!B31 -> 5.75 | C102: ='NanQ ONE Program'!C31 -> 105 | D102: ='NanQ ONE Program'!D31 -> 104.5 | E102: ='NanQ ONE Program'!E31 -> 103.75 | H102: 21 | I102: =B101 -> 5.625 | J102: =C101+$G$82 -> 104.75 | K102: =D101+$G$82 -> 104.25 | L102: =E101+$G$82 -> 103.5
B103: ='NanQ ONE Program'!B32 -> 5.875 | C103: ='NanQ ONE Program'!C32 -> 105.25 | D103: ='NanQ ONE Program'!D32 -> 104.75 | E103: ='NanQ ONE Program'!E32 -> 104 | H103: 22 | I103: =B100 -> 5.499 | J103: =C100+$G$82 -> 104.5 | K103: =D100+$G$82 -> 104 | L103: =E100+$G$82 -> 103.25
B104: ='NanQ ONE Program'!B33 -> 5.999 | C104: ='NanQ ONE Program'!C33 -> 105.5 | D104: ='NanQ ONE Program'!D33 -> 105 | E104: ='NanQ ONE Program'!E33 -> 104.25 | H104: 23 | I104: =B99 -> 5.375 | J104: =C99+$G$82 -> 104.25 | K104: =D99+$G$82 -> 103.75 | L104: =E99+$G$82 -> 103
B105: ='NanQ ONE Program'!B34 -> 6.125 | C105: ='NanQ ONE Program'!C34 -> 105.75 | D105: ='NanQ ONE Program'!D34 -> 105.25 | E105: ='NanQ ONE Program'!E34 -> 104.5 | H105: 24 | I105: =B98 -> 5.25 | J105: =C98+$G$82 -> 104 | K105: =D98+$G$82 -> 103.5 | L105: =E98+$G$82 -> 102.75
B106: ='NanQ ONE Program'!B35 -> 6.25 | C106: ='NanQ ONE Program'!C35 -> 106 | D106: ='NanQ ONE Program'!D35 -> 105.5 | E106: ='NanQ ONE Program'!E35 -> 104.75 | H106: 25 | I106: =B97 -> 5.125 | J106: =C97+$G$82 -> 103.75 | K106: =D97+$G$82 -> 103.25 | L106: =E97+$G$82 -> 102.5
B107: ='NanQ ONE Program'!B36 -> 6.375 | C107: ='NanQ ONE Program'!C36 -> 106.25 | D107: ='NanQ ONE Program'!D36 -> 105.75 | E107: ='NanQ ONE Program'!E36 -> 105 | H107: 26 | I107: =B96 -> 4.999 | J107: =C96+$G$82 -> 103.5 | K107: =D96+$G$82 -> 103 | L107: =E96+$G$82 -> 102.25
B108: ='NanQ ONE Program'!B37 -> 6.499 | C108: ='NanQ ONE Program'!C37 -> 106.5 | D108: ='NanQ ONE Program'!D37 -> 106 | E108: ='NanQ ONE Program'!E37 -> 105.25 | H108: 27 | I108: =B95 -> 4.875 | J108: =C95+$G$82 -> 103.25 | K108: =D95+$G$82 -> 102.75 | L108: =E95+$G$82 -> 102
B109: ='NanQ ONE Program'!B38 -> 6.625 | C109: ='NanQ ONE Program'!C38 -> 106.75 | D109: ='NanQ ONE Program'!D38 -> 106.25 | E109: ='NanQ ONE Program'!E38 -> 105.5 | H109: 28 | I109: =B94 -> 4.75 | J109: =C94+$G$82 -> 103 | K109: =D94+$G$82 -> 102.5 | L109: =E94+$G$82 -> 101.75
B110: ='NanQ ONE Program'!B39 -> 6.75 | C110: ='NanQ ONE Program'!C39 -> 107 | D110: ='NanQ ONE Program'!D39 -> 106.5 | E110: ='NanQ ONE Program'!E39 -> 105.75 | H110: 29 | I110: =B93 -> 4.625 | J110: =C93+$G$82 -> 102.75 | K110: =D93+$G$82 -> 102.25 | L110: =E93+$G$82 -> 101.5
B111: ='NanQ ONE Program'!B40 -> 6.875 | C111: ='NanQ ONE Program'!C40 -> 107.25 | D111: ='NanQ ONE Program'!D40 -> 106.75 | E111: ='NanQ ONE Program'!E40 -> 106 | H111: 30 | I111: =B92 -> 4.499 | J111: =C92+$G$82 -> 102.5 | K111: =D92+$G$82 -> 102 | L111: =E92+$G$82 -> 101.25
B112: ='NanQ ONE Program'!B41 -> 6.999 | C112: ='NanQ ONE Program'!C41 -> 107.5 | D112: ='NanQ ONE Program'!D41 -> 107 | E112: ='NanQ ONE Program'!E41 -> 106.25 | H112: 31 | I112: =B91 -> 4.375 | J112: =C91+$G$82 -> 102.25 | K112: =D91+$G$82 -> 101.75 | L112: =E91+$G$82 -> 101
B113: ='NanQ ONE Program'!B42 -> 7.125 | C113: ='NanQ ONE Program'!C42 -> 107.75 | D113: ='NanQ ONE Program'!D42 -> 107.25 | E113: ='NanQ ONE Program'!E42 -> 106.5 | H113: 32 | I113: =B90 -> 4.25 | J113: =C90+$G$82 -> 102 | K113: =D90+$G$82 -> 101.5 | L113: =E90+$G$82 -> 100.75
B114: ='NanQ ONE Program'!B43 -> 7.25 | C114: ='NanQ ONE Program'!C43 -> 108 | D114: ='NanQ ONE Program'!D43 -> 107.5 | E114: ='NanQ ONE Program'!E43 -> 106.75 | H114: 33 | I114: =B89 -> 4.125 | J114: =C89+$G$82 -> 101.75 | K114: =D89+$G$82 -> 101.25 | L114: =E89+$G$82 -> 100.5
B115: ='NanQ ONE Program'!B44 -> 7.375 | C115: ='NanQ ONE Program'!C44 -> 108.25 | D115: ='NanQ ONE Program'!D44 -> 107.75 | E115: ='NanQ ONE Program'!E44 -> 107 | H115: 34 | I115: =B88 -> 3.999 | J115: =C88+$G$82 -> 101.5 | K115: =D88+$G$82 -> 101 | L115: =E88+$G$82 -> 100.25
B116: ='NanQ ONE Program'!B45 -> 7.499 | C116: ='NanQ ONE Program'!C45 -> 108.5 | D116: ='NanQ ONE Program'!D45 -> 108 | E116: ='NanQ ONE Program'!E45 -> 107.25 | H116: 35 | I116: =B87 -> 3.875 | J116: =C87+$G$82 -> 101.25 | K116: =D87+$G$82 -> 100.75 | L116: =E87+$G$82 -> 100
B117: ='NanQ ONE Program'!B46 -> 7.625 | C117: ='NanQ ONE Program'!C46 -> 108.75 | D117: ='NanQ ONE Program'!D46 -> 108.25 | E117: ='NanQ ONE Program'!E46 -> 107.5 | H117: 36 | I117: =B86 -> 3.75 | J117: =C86+$G$82 -> 101 | K117: =D86+$G$82 -> 100.5 | L117: =E86+$G$82 -> 
B118: ='NanQ ONE Program'!B47 -> 7.75 | C118: ='NanQ ONE Program'!C47 -> 109 | D118: ='NanQ ONE Program'!D47 -> 108.5 | E118: ='NanQ ONE Program'!E47 -> 107.75 | H118: 37 | I118: =B85 -> 3.625 | J118: =C85+$G$82 -> 100.75 | K118: =D85+$G$82 -> 100.25 | L118: =E85+$G$82 -> 
B119: ='NanQ ONE Program'!B48 -> 7.875 | C119: ='NanQ ONE Program'!C48 -> 109.25 | D119: ='NanQ ONE Program'!D48 -> 108.75 | E119: ='NanQ ONE Program'!E48 -> 108 | H119: 38 | I119: =B84 -> 3.499 | J119: =C84+$G$82 -> 100.5 | K119: =D84+$G$82 -> 100 | L119: =E84+$G$82 -> 
B120: ='NanQ ONE Program'!B49 -> 7.999 | C120: ='NanQ ONE Program'!C49 -> 109.5 | D120: ='NanQ ONE Program'!D49 -> 109 | E120: ='NanQ ONE Program'!E49 -> 108.25 | H120: 39 | I120: =B83 -> 3.375 | J120: =C83+$G$82 -> 100.25 | K120: =D83+$G$82 -> 99.75 | L120: =E83+$G$82 -> 
B121: ='NanQ ONE Program'!B50 -> 8.125 | C121: ='NanQ ONE Program'!C50 -> 109.75 | D121: ='NanQ ONE Program'!D50 -> 109.25 | E121: ='NanQ ONE Program'!E50 -> 108.5 | H121: 40 | I121: =B82 -> 3.25 | J121: =C82+$G$82 -> 100 | K121: =D82+$G$82 -> 99.5 | L121: =E82+$G$82 -> 
J122: =MATCH(100,J82:J121,-1) -> 40 | K122: =MATCH(100,K82:K121,-1) -> 38 | L122: =MATCH(E65,L82:L121,-1) -> 
I123: Par Rates | J123: =VLOOKUP(J122,H82:I121,2,FALSE) -> 3.25 | K123: =VLOOKUP(K122,H82:I121,2,FALSE) -> 3.499 | L123: =VLOOKUP(L122,H82:L121,2,FALSE) -> 
B124: Base Rate / Base Price | J124: =IF(G89=J81,J123,0) -> 0 | K124: =IF(G89=K81,K123,0) -> 0 | L124: =IF(G89=L81,L123,0) -> 0 | M124: =SUM(J124:L124) -> 0
B125: Coupon | C125: Full Doc | D125: Alt Doc | E125: DSCR | G125: Total LLPA | J125: =VLOOKUP(J122,H82:J121,3,FALSE) -> 100 | K125: =VLOOKUP(K122,H82:K121,4,FALSE) -> 100 | L125: =VLOOKUP(L122,H82:L121,5,FALSE) -> 
B126: =B82 -> 3.25 | C126: 100 | D126: 99.5 | G126: ='NanQ ONE Program'!V27 -> 0 | J126: =IF(G89=J81,J125,0) -> 0 | K126: =IF(G89=K81,K125,0) -> 0 | L126: =IF(G89=L81,L125,0) -> 0 | M126: =SUM(J126:L126) -> 0
B127: 3.375 | C127: 100.25 | D127: 99.75 | G127: LPC
B128: 3.499 | C128: 100.5 | D128: 100 | G128: ='NanQ ONE Program'!V33 -> 0 | I128: Base Rate / Base Price
B129: 3.625 | C129: 100.75 | D129: 100.25 | I129: Coupon | J129: Full Doc | K129: Alt Doc | L129: DSCR
B130: 3.75 | C130: 101 | D130: 100.5 | G130: Total Price | H130: 1 | I130: =I82 -> 8.125 | J130: =C165+$G$126-$G$128 -> 109.75 | K130: =D165+$G$126-$G$128 -> 109.25 | L130: =E165+$G$126-$G$128 -> 108.5
B131: 3.875 | C131: 101.25 | D131: 100.75 | E131: 100 | G131: ='NanQ ONE Program'!V34 -> LPC Not Valid | H131: 2 | I131: 7.999 | J131: =C164+$G$126-$G$128 -> 109.5 | K131: =D164+$G$126-$G$128 -> 109 | L131: =E164+$G$126-$G$128 -> 108.25
B132: 3.999 | C132: 101.5 | D132: 101 | E132: 100.25 | H132: 3 | I132: 7.875 | J132: =C163+$G$126-$G$128 -> 109.25 | K132: =D163+$G$126-$G$128 -> 108.75 | L132: =E163+$G$126-$G$128 -> 108
B133: 4.125 | C133: 101.75 | D133: 101.25 | E133: 100.5 | G133: ='NanQ ONE Program'!U13 -> Choose a Selection | H133: 4 | I133: 7.75 | J133: =C162+$G$126-$G$128 -> 109 | K133: =D162+$G$126-$G$128 -> 108.5 | L133: =E162+$G$126-$G$128 -> 107.75
B134: 4.25 | C134: 102 | D134: 101.5 | E134: 100.75 | H134: 5 | I134: 7.625 | J134: =C161+$G$126-$G$128 -> 108.75 | K134: =D161+$G$126-$G$128 -> 108.25 | L134: =E161+$G$126-$G$128 -> 107.5
B135: 4.375 | C135: 102.25 | D135: 101.75 | E135: 101 | H135: 6 | I135: 7.499 | J135: =C160+$G$126-$G$128 -> 108.5 | K135: =D160+$G$126-$G$128 -> 108 | L135: =E160+$G$126-$G$128 -> 107.25
B136: 4.499 | C136: 102.5 | D136: 102 | E136: 101.25 | H136: 7 | I136: 7.375 | J136: =C159+$G$126-$G$128 -> 108.25 | K136: =D159+$G$126-$G$128 -> 107.75 | L136: =E159+$G$126-$G$128 -> 107
B137: 4.625 | C137: 102.75 | D137: 102.25 | E137: 101.5 | H137: 8 | I137: 7.25 | J137: =C158+$G$126-$G$128 -> 108 | K137: =D158+$G$126-$G$128 -> 107.5 | L137: =E158+$G$126-$G$128 -> 106.75
B138: 4.75 | C138: 103 | D138: 102.5 | E138: 101.75 | H138: 9 | I138: 7.125 | J138: =C157+$G$126-$G$128 -> 107.75 | K138: =D157+$G$126-$G$128 -> 107.25 | L138: =E157+$G$126-$G$128 -> 106.5
B139: 4.875 | C139: 103.25 | D139: 102.75 | E139: 102 | H139: 10 | I139: 6.999 | J139: =C156+$G$126-$G$128 -> 107.5 | K139: =D156+$G$126-$G$128 -> 107 | L139: =E156+$G$126-$G$128 -> 106.25
B140: 4.999 | C140: 103.5 | D140: 103 | E140: 102.25 | H140: 11 | I140: 6.875 | J140: =C155+$G$126-$G$128 -> 107.25 | K140: =D155+$G$126-$G$128 -> 106.75 | L140: =E155+$G$126-$G$128 -> 106
B141: 5.125 | C141: 103.75 | D141: 103.25 | E141: 102.5 | H141: 12 | I141: 6.75 | J141: =C154+$G$126-$G$128 -> 107 | K141: =D154+$G$126-$G$128 -> 106.5 | L141: =E154+$G$126-$G$128 -> 105.75
B142: 5.25 | C142: 104 | D142: 103.5 | E142: 102.75 | H142: 13 | I142: 6.625 | J142: =C153+$G$126-$G$128 -> 106.75 | K142: =D153+$G$126-$G$128 -> 106.25 | L142: =E153+$G$126-$G$128 -> 105.5
B143: 5.375 | C143: 104.25 | D143: 103.75 | E143: 103 | H143: 14 | I143: 6.499 | J143: =C152+$G$126-$G$128 -> 106.5 | K143: =D152+$G$126-$G$128 -> 106 | L143: =E152+$G$126-$G$128 -> 105.25
B144: 5.499 | C144: 104.5 | D144: 104 | E144: 103.25 | H144: 15 | I144: 6.375 | J144: =C151+$G$126-$G$128 -> 106.25 | K144: =D151+$G$126-$G$128 -> 105.75 | L144: =E151+$G$126-$G$128 -> 105
B145: 5.625 | C145: 104.75 | D145: 104.25 | E145: 103.5 | H145: 16 | I145: 6.25 | J145: =C150+$G$126-$G$128 -> 106 | K145: =D150+$G$126-$G$128 -> 105.5 | L145: =E150+$G$126-$G$128 -> 104.75
B146: =B102 -> 5.75 | C146: 105 | D146: 104.5 | E146: 103.75 | H146: 17 | I146: 6.125 | J146: =C149+$G$126-$G$128 -> 105.75 | K146: =D149+$G$126-$G$128 -> 105.25 | L146: =E149+$G$126-$G$128 -> 104.5
B147: 5.875 | C147: 105.25 | D147: 104.75 | E147: 104 | H147: 18 | I147: 5.999 | J147: =C148+$G$126-$G$128 -> 105.5 | K147: =D148+$G$126-$G$128 -> 105 | L147: =E148+$G$126-$G$128 -> 104.25
B148: 5.999 | C148: 105.5 | D148: 105 | E148: 104.25 | H148: 19 | I148: 5.875 | J148: =C147+$G$126-$G$128 -> 105.25 | K148: =D147+$G$126-$G$128 -> 104.75 | L148: =E147+$G$126-$G$128 -> 104
B149: 6.125 | C149: 105.75 | D149: 105.25 | E149: 104.5 | H149: 20 | I149: 5.75 | J149: =C146+$G$126-$G$128 -> 105 | K149: =D146+$G$126-$G$128 -> 104.5 | L149: =E146+$G$126-$G$128 -> 103.75
B150: 6.25 | C150: 106 | D150: 105.5 | E150: 104.75 | H150: 21 | I150: 5.625 | J150: =C145+$G$126-$G$128 -> 104.75 | K150: =D145+$G$126-$G$128 -> 104.25 | L150: =E145+$G$126-$G$128 -> 103.5
B151: 6.375 | C151: 106.25 | D151: 105.75 | E151: 105 | H151: 22 | I151: 5.499 | J151: =C144+$G$126-$G$128 -> 104.5 | K151: =D144+$G$126-$G$128 -> 104 | L151: =E144+$G$126-$G$128 -> 103.25
B152: 6.499 | C152: 106.5 | D152: 106 | E152: 105.25 | H152: 23 | I152: 5.375 | J152: =C143+$G$126-$G$128 -> 104.25 | K152: =D143+$G$126-$G$128 -> 103.75 | L152: =E143+$G$126-$G$128 -> 103
B153: 6.625 | C153: 106.75 | D153: 106.25 | E153: 105.5 | H153: 24 | I153: 5.25 | J153: =C142+$G$126-$G$128 -> 104 | K153: =D142+$G$126-$G$128 -> 103.5 | L153: =E142+$G$126-$G$128 -> 102.75
B154: 6.75 | C154: 107 | D154: 106.5 | E154: 105.75 | H154: 25 | I154: 5.125 | J154: =C141+$G$126-$G$128 -> 103.75 | K154: =D141+$G$126-$G$128 -> 103.25 | L154: =E141+$G$126-$G$128 -> 102.5
B155: 6.875 | C155: 107.25 | D155: 106.75 | E155: 106 | H155: 26 | I155: 4.999 | J155: =C140+$G$126-$G$128 -> 103.5 | K155: =D140+$G$126-$G$128 -> 103 | L155: =E140+$G$126-$G$128 -> 102.25
B156: 6.999 | C156: 107.5 | D156: 107 | E156: 106.25 | H156: 27 | I156: 4.875 | J156: =C139+$G$126-$G$128 -> 103.25 | K156: =D139+$G$126-$G$128 -> 102.75 | L156: =E139+$G$126-$G$128 -> 102
B157: 7.125 | C157: 107.75 | D157: 107.25 | E157: 106.5 | H157: 28 | I157: 4.75 | J157: =C138+$G$126-$G$128 -> 103 | K157: =D138+$G$126-$G$128 -> 102.5 | L157: =E138+$G$126-$G$128 -> 101.75
B158: 7.25 | C158: 108 | D158: 107.5 | E158: 106.75 | H158: 29 | I158: 4.625 | J158: =C137+$G$126-$G$128 -> 102.75 | K158: =D137+$G$126-$G$128 -> 102.25 | L158: =E137+$G$126-$G$128 -> 101.5
B159: 7.375 | C159: 108.25 | D159: 107.75 | E159: 107 | H159: 30 | I159: 4.499 | J159: =C136+$G$126-$G$128 -> 102.5 | K159: =D136+$G$126-$G$128 -> 102 | L159: =E136+$G$126-$G$128 -> 101.25
B160: 7.499 | C160: 108.5 | D160: 108 | E160: 107.25 | H160: 31 | I160: 4.375 | J160: =C135+$G$126-$G$128 -> 102.25 | K160: =D135+$G$126-$G$128 -> 101.75 | L160: =E135+$G$126-$G$128 -> 101
B161: 7.625 | C161: 108.75 | D161: 108.25 | E161: 107.5 | H161: 32 | I161: 4.25 | J161: =C134+$G$126-$G$128 -> 102 | K161: =D134+$G$126-$G$128 -> 101.5 | L161: =E134+$G$126-$G$128 -> 100.75
B162: 7.75 | C162: 109 | D162: 108.5 | E162: 107.75 | H162: 33 | I162: 4.125 | J162: =C133+$G$126-$G$128 -> 101.75 | K162: =D133+$G$126-$G$128 -> 101.25 | L162: =E133+$G$126-$G$128 -> 100.5
B163: 7.875 | C163: 109.25 | D163: 108.75 | E163: 108 | H163: 34 | I163: 3.999 | J163: =C132+$G$126-$G$128 -> 101.5 | K163: =D132+$G$126-$G$128 -> 101 | L163: =E132+$G$126-$G$128 -> 100.25
B164: 7.999 | C164: 109.5 | D164: 109 | E164: 108.25 | H164: 35 | I164: 3.875 | J164: =C131+$G$126-$G$128 -> 101.25 | K164: =D131+$G$126-$G$128 -> 100.75 | L164: =E131+$G$126-$G$128 -> 100
B165: 8.125 | C165: 109.75 | D165: 109.25 | E165: 108.5 | H165: 36 | I165: 3.75 | J165: =C130+$G$126-$G$128 -> 101 | K165: =D130+$G$126-$G$128 -> 100.5 | L165: =E130+$G$126-$G$128 -> 
H166: 37 | I166: 3.625 | J166: =C129+$G$126-$G$128 -> 100.75 | K166: =D129+$G$126-$G$128 -> 100.25 | L166: =E129+$G$126-$G$128 -> 
H167: 38 | I167: 3.499 | J167: =C128+$G$126-$G$128 -> 100.5 | K167: =D128+$G$126-$G$128 -> 100 | L167: =E128+$G$126-$G$128 -> 
H168: 39 | I168: 3.375 | J168: =C127+$G$126-$G$128 -> 100.25 | K168: =D127+$G$126-$G$128 -> 99.75 | L168: =E127+$G$126-$G$128 -> 
H169: 40 | I169: 3.25 | J169: =C126+$G$126-$G$128 -> 100 | K169: =D126+$G$126-$G$128 -> 99.5 | L169: =E126+$G$126-$G$128 -> 
H170: 41 | J170: =MATCH(100,J130:J169,-1) -> 40 | K170: =MATCH(100,K130:K169,-1) -> 38 | L170: =MATCH(100,L130:L169,-1) -> 35
H171: 42 | I171: Par Rates | J171: =VLOOKUP(J170,H130:I174,2,FALSE) -> 3.25 | K171: =VLOOKUP(K170,H130:I174,2,FALSE) -> 3.499 | L171: =VLOOKUP(L170,H130:L174,2,FALSE) -> 3.875
H172: 43 | J172: =IF(G133=J129,J171,0) -> 0 | K172: =IF(G133=K129,K171,0) -> 0 | L172: =IF(G133=L129,L171,0) -> 0 | M172: =SUM(J172:L172) -> 0
H173: 44 | J173: =VLOOKUP(J170,H130:J174,3,FALSE) -> 100 | K173: =VLOOKUP(K170,H130:K174,4,FALSE) -> 100 | L173: =VLOOKUP(L170,H130:L174,5,FALSE) -> 100
H174: 45 | J174: =IF(G133=J129,J173,0) -> 0 | K174: =IF(G133=K129,K173,0) -> 0 | L174: =IF(G133=L129,L173,0) -> 0 | M174: =SUM(J174:L174) -> 0
B177: Near Par Rate - BPC | D177: =Feed!M124 -> 0 | E177: =M126 -> 0
B178: Near Par Rate - BPC | E178: =IF(E177>'NanQ ONE Program'!V29,'NanQ ONE Program'!V29,Feed!E177) -> 0
B180: Near Par Rate - LPC | D180: =Feed!M172 -> 0 | E180: =Feed!M174 -> 0
B181: Near Par Rate - LPC | E181: =IF(E180>'NanQ ONE Program'!V29,'NanQ ONE Program'!V29,Feed!E180) -> 0

Sheet Cover Page (hidden)
J5: 19000 MacArthur Boulevard, 2nd Floor
J6: Irvine, CA 92612
B12: LoanStream Mortgage Wholesale NANQ Rate Sheet
C14: Underwriting Fee | F14: Relock Fee | I14: Mortgagee Clause | N14: Contact list
C15: NANQ | D15: 1295 | F15: -0.25 | I15: OCMBC, INC. ISAOA 19000 MacArthur Blvd, Ste. 200 Irvine, CA 92612 | N15: Corporate Headquarters: | Q15: Phone: | R15: 800-760-1833
C16: DOC Fee - All Loans | F16: Extension Fee | Q16: Email: | R16: Inquires@LSMortgage.com
C17: 79 | F17: 0.02/Day
N18: NAN-Q Prequals | Q18: Phone: | R18: Email Only
Q19: Email: | R19: EZQual@LSMortgage.com
C20: Current Turn Times | N20: U/W Loan Scenarios NAN-Q | Q20: Phone: | R20: Email Only
C21: Stage | E21: Turn Times | G21: Department Hours | J21: Cutoff Time | Q21: Email: | R21: NANQScenario@LSMortgage.com
C22: PreQual | E22: 24-48 Hours | G22: PreQual Desk Hours: 8:00 AM-5:00 PM PST | J22: 3:00 PM PST | N22: Submission Desk | Q22: Phone: | R22: Email Only
C23: Set-up | E23: 24-48 Hours | G23: Setup Desk Hours: 8:00 AM-6:00 PM PST | Q23: Email: | R23: Submissions_LS@LSMortgage.com
C24: New Underwrite | E24: 24-48 Hours | G24: Underwriting Hours: 7:00 AM-6:00 PM PST | J24: 3:00 PM PST | N24: Lock Desk: | Q24: Phone: | R24: 949-679-7059
C25: Conditions Review | E25: 24-48 Hours | G25: Underwriting Hours: 7:00 AM-6:00 PM PST | J25: 3:00 PM PST | Q25: Email: | R25: LockDesk@LSMortgage.com
C26: Part "A" QC | E26: 48-72 Hours | G26: PreQual Desk Hours: 8:00 AM-5:00 PM PST | J26: 3:30 PM PST | N26: CD Desk: | Q26: Phone: | R26: Email Only
C27: Lock Desk | E27: SameDay | G27: Lock Desk Hours are: 8:30 AM - 5:00 PM PST | J27: 5:00 PM PST | Q27: Email: | R27: CD@LSMortgage.com
C28: CTC Review | E28: SameDay | G28: Underwriting Hours: 7:00 AM-6:00 PM PST | J28: 1:00 PM PST | N28: Funding Department: | Q28: Phone: | R28: Email Only
C29: CD | E29: SameDay | G29: CD Desk Hours: 7:30 AM-6:00 PM PST | J29: 12:00 PM PST | Q29: Email: | R29: Funding@LSMortgage.com
C30: DOCS | E30: SameDay | G30: DOCS Desk Hours: 7:30 AM-6:00 PM PST | J30: 12:00 PM PST | N30: Management Escalations | Q30: Name: | R30: David Racer / Operations
C31: Funding | E31: SameDay | G31: Funding Desk Hours: 5:30 AM-5:00 PM PST | J31: 12:30 PM PST | Q31: Email: | R31: DRacer@LSMortgage.com
Q32: Name: | R32: Natalie Hernandez / Closing
Q33: Email: | R33: NHernandez@LSMortgage.com
Q34: Name: | R34: Nikki Allen / Underwriting
Q35: Email: | R35: NAllen@LSMortgage.com
Q36: Name: | R36: Adam Elway / Capital Markets
Q37: Email: | R37: AElway@LSMortgage.com
Q38: Name: | R38: Moe Aziz / Secondary
Q39: Email: | R39: MAziz@LSMortgage.com
B44: RATES AND LLPAs ARE SUBJECT TO CHANGE WITHOUT NOTICE.
B45: THIS INFORMATION IS INTENDED FOR PROFESSIONAL OR BUSINESS USE ONLY. NOT FOR CONSUMER DISTRIBUTION.

Sheet Sheet1 (hidden)
